fUST/lending_fUST_20250718
["ID","MTS","AMOUNT","RATE_DAILY","PERIOD"]
[372938344,1752814268025,-151.0,0.00018904,2]
[372938345,1752814268034,-151.0,0.00018904,2]
[372938346,1752814268044,-683.36,0.00018904,2]
[372938347,1752814268053,-151.0,0.00018904,2]
[372938348,1752814268062,-2418.55,0.00018904,2]
[372938349,1752814268071,-1045.61,0.00018904,2]
[372938350,1752814268080,-152.00976,0.00018904,2]
[372938351,1752814268090,-538.01,0.00018904,2]
[372938352,1752814268100,-460.0,0.00018904,2]
[372938353,1752814268109,-560.07,0.00018904,2]
[372938354,1752814268119,-460.0,0.00018904,2]
[372938355,1752814268129,-686.49,0.00018904,2]
[372938356,1752814268138,-460.0,0.00018904,2]
[372938357,1752814268147,-151.0,0.00018904,2]
[372938358,1752814268157,-549.22267384,0.00018904,2]
[372938359,1752814268281,-211.916426,0.00018904,2]
[372938360,1752814268291,-151.0,0.00018904,2]
[372938361,1752814268300,-151.0,0.00018904,2]
[372938362,1752814268310,-151.0,0.00018904,2]
[372938363,1752814268319,-460.0,0.00018904,2]
[372938364,1752814268329,-883.96,0.00018904,2]
[372938365,1752814268338,-211.916426,0.00018904,2]
[372938366,1752814268348,-460.0,0.00018904,2]
[372938367,1752814268357,-460.0,0.00018904,2]
[372938368,1752814268366,-460.0,0.00018904,2]
[372938369,1752814268375,-1347.37,0.00018904,2]
[372938370,1752814268385,-951.1,0.00018904,2]
[372938371,1752814268394,-642.72,0.00018904,2]
[372938372,1752814268404,-460.0,0.00018904,2]
[372938373,1752814268413,-460.0,0.00018904,2]
[372938374,1752814268422,-460.0,0.00018904,2]
[372938375,1752814268432,-460.0,0.00018904,2]
[372938376,1752814268442,-151.0,0.00018904,2]
[372938377,1752814268451,-460.0,0.00018904,2]
[372938378,1752814268460,-855.25,0.00018904,2]
[372938379,1752814268469,-618.09,0.00018904,2]
[372938380,1752814268480,-4686.52,0.00018904,2]
[372938381,1752814268489,-460.0,0.00018904,2]
[372938382,1752814268499,-723.7,0.00018904,2]
[372938383,1752814268508,-460.0,0.00018904,2]
[372938384,1752814268517,-460.0,0.00018904,2]
[372938385,1752814268527,-460.0,0.00018904,2]
[372938386,1752814268536,-460.0,0.00018904,2]
[372938387,1752814268545,-460.0,0.00018904,2]
[372938388,1752814268554,-460.0,0.00018904,2]
[372938389,1752814268564,-460.0,0.00018904,2]
[372938390,1752814268573,-460.0,0.00018904,2]
[372938391,1752814268583,-1372.5,0.00018904,2]
[372938392,1752814268593,-174.41995147,0.00018904,2]
[372938393,1752814268603,-898.43,0.00018904,2]
[372938394,1752814268612,-3275.21,0.00018904,2]
[372938395,1752814268621,-3660.04,0.00018904,2]
[372938396,1752814268631,-1144.81,0.00018904,2]
[372938397,1752814268641,-460.0,0.00018904,2]
[372938398,1752814268650,-908.6,0.00018904,2]
[372938399,1752814268660,-899.51,0.00018904,2]
[372938400,1752814268669,-460.0,0.00018904,2]
[372938401,1752814268679,-460.0,0.00018904,2]
[372938402,1752814268688,-460.0,0.00018904,2]
[372938403,1752814268698,-884.48,0.00018904,2]
[372938404,1752814268708,-460.0,0.00018904,2]
[372938405,1752814268717,-965.48,0.00018904,2]
[372938406,1752814268727,-888.06,0.00018904,2]
[372938407,1752814268737,-766.66,0.00018904,2]
[372938408,1752814268747,-1451.87,0.00018904,2]
[372938409,1752814268757,-460.0,0.00018904,2]
[372938410,1752814268770,-789.94,0.00018904,2]
[372938411,1752814268780,-1037.24,0.00018904,2]
[372938412,1752814268789,-3558.83,0.00018904,2]
[372938413,1752814268798,-652.7,0.00018904,2]
[372938414,1752814268809,-460.0,0.00018904,2]
[372938415,1752814268818,-479.07700579,0.00018904,2]
[372938416,1752814268827,-460.0,0.00018904,2]
[372938417,1752814268837,-5829.63,0.00018904,2]
[372938418,1752814268847,-2475.6,0.00018904,2]
[372938419,1752814268856,-460.0,0.00018904,2]
[372938420,1752814268866,-921.62,0.00018904,2]
[372938421,1752814268876,-460.0,0.00018904,2]
[372938422,1752814268885,-727.58,0.00018904,2]
[372938423,1752814268894,-2187.72,0.00018904,2]
[372938424,1752814268905,-1653.45,0.00018904,2]
[372938425,1752814268914,-785.77,0.00018904,2]
[372938426,1752814268924,-698.36,0.00018904,2]
[372938427,1752814268933,-460.0,0.00018904,2]
[372938428,1752814268942,-473.4009991,0.00018904,2]
[372938429,1752814268952,-1105.74,0.00018904,2]
[372938430,1752814268961,-822.88,0.00018904,2]
[372938431,1752814268972,-880.554708,0.00018904,2]
[372938432,1752814268982,-1074.47,0.00018904,2]
[372938433,1752814268991,-656.95,0.00018904,2]
[372938434,1752814269001,-460.0,0.00018904,2]
[372938435,1752814269010,-460.0,0.00018904,2]
[372938436,1752814269019,-880.554708,0.00018904,2]
[372938437,1752814269028,-460.0,0.00018904,2]
[372938438,1752814269037,-1003.73,0.00018904,2]
[372938439,1752814269046,-460.0,0.00018904,2]
[372938440,1752814269056,-774.39,0.00018904,2]
[372938441,1752814269066,-809.59,0.00018904,2]
[372938442,1752814269075,-460.0,0.00018904,2]
[372938443,1752814269086,-575.36,0.00018904,2]
[372938444,1752814269095,-316.14747849,0.00018904,2]
[372938445,1752814269104,-159.450959,0.00018904,2]
[372938446,1752814269114,-460.0,0.00018904,2]
[372938447,1752814269123,-159.450959,0.00018904,2]
[372938448,1752814269132,-815.73,0.00018904,2]
[372938449,1752814269141,-788.57,0.00018904,2]
[372938450,1752814269150,-734.59,0.00018904,2]
[372938451,1752814269160,-3087.49,0.00018904,2]
[372938452,1752814269169,-703.98,0.00018904,2]
[372938453,1752814269179,-866.64,0.00018904,2]
[372938454,1752814269189,-733.98,0.00018904,2]
[372938455,1752814269199,-1531.18,0.00018904,2]
[372938456,1752814269208,-480.23,0.00018904,2]
[372938457,1752814269218,-794.47,0.00018904,2]
[372938458,1752814269228,-7082.82,0.00018904,2]
[372938459,1752814269238,-460.0,0.00018904,2]
[372938460,1752814269248,-2241.65,0.00018904,2]
[372938461,1752814269257,-2622.92,0.00018904,2]
[372938462,1752814269267,-5019.62,0.00018904,2]
[372938463,1752814269276,-460.0,0.00018904,2]
[372938464,1752814269286,-226.21,0.00019013,2]
[372938465,1752814269296,-460.0,0.00019178,2]
[372938466,1752814269306,-460.0,0.00019178,2]
[372938467,1752814269315,-460.0,0.00019178,2]
[372938468,1752814269324,-460.0,0.00019178,2]
[372938469,1752814269334,-460.0,0.00019178,2]
[372938470,1752814269343,-460.0,0.00019178,2]
[372938471,1752814269353,-460.0,0.00019178,2]
[372938472,1752814269362,-617.58,0.00019178,2]
[372938473,1752814269372,-460.0,0.00019178,2]
[372938474,1752814269382,-460.0,0.00019178,2]
[372938475,1752814269392,-460.0,0.00019178,2]
[372938476,1752814269401,-962.22,0.00019178,2]
[372938477,1752814269411,-460.0,0.00019178,2]
[372938478,1752814269420,-996.21,0.00019178,2]
[372938479,1752814269430,-460.0,0.00019178,2]
[372938480,1752814269440,-460.0,0.00019178,2]
[372938481,1752814269449,-590.38328388,0.00019178,2]
[372938482,1752814269458,-504.97,0.00019178,2]
[372938483,1752814269468,-460.0,0.00019178,2]
[372938484,1752814269478,-471.94,0.00019178,2]
[372938485,1752814269488,-557.15,0.00019178,2]
[372938486,1752814269497,-460.0,0.00019178,2]
[372938487,1752814269507,-460.0,0.00019178,2]
[372938488,1752814269516,-633.99,0.00019178,2]
[372938489,1752814269526,-460.0,0.00019178,2]
[372938490,1752814269535,-480.02,0.00019178,2]
[372938491,1752814269544,-460.0,0.00019178,2]
[372938492,1752814269554,-745.89,0.00019178,2]
[372938493,1752814269563,-907.33,0.00019178,2]
[372938494,1752814269573,-638.44,0.00019178,2]
[372938495,1752814269587,-1126.45,0.00019178,2]
[372938496,1752814269596,-902.44,0.00019178,2]
[372938497,1752814269606,-241.68684354,0.00019178,2]
[372938498,1752814269616,-460.0,0.00019178,2]
[372938499,1752814269625,-686.15,0.00019178,2]
[372938500,1752814269634,-218.28440608,0.00019178,2]
[372938501,1752814269644,-151.0,0.00019178,2]
[372938502,1752814269653,-151.792969,0.00019178,2]
[372938503,1752814269663,-654.1,0.00019178,2]
[372938504,1752814269672,-555.02,0.00019178,2]
[372938505,1752814269682,-151.0,0.00019178,2]
[372938506,1752814269691,-712.9,0.00019178,2]
[372938507,1752814269700,-226.993,0.00019178,2]
[372938508,1752814269709,-465.47,0.00019178,2]
[372938509,1752814269719,-460.0,0.00019178,2]
[372938510,1752814269730,-462.34,0.00019178,2]
[372938511,1752814269740,-156.027261,0.00019178,2]
[372938512,1752814269749,-156.027261,0.00019178,2]
[372938513,1752814269759,-683.36,0.00019178,2]
[372938514,1752814269771,-1670.527849,0.00019178,2]
[372938515,1752814269780,-1670.527849,0.00019178,2]
[372938516,1752814269789,-2418.55,0.00019178,2]
[372938517,1752814269799,-1045.61,0.00019178,2]
[372938518,1752814269808,-538.01,0.00019178,2]
[372938519,1752814269817,-460.0,0.00019178,2]
[372938520,1752814269827,-560.07,0.00019178,2]
[372938521,1752814269836,-460.0,0.00019178,2]
[372938522,1752814269847,-686.49,0.00019178,2]
[372938523,1752814269856,-460.0,0.00019178,2]
[372938524,1752814269866,-460.0,0.00019178,2]
[372938525,1752814269875,-883.96,0.00019178,2]
[372938526,1752814269885,-460.0,0.00019178,2]
[372938527,1752814269894,-460.0,0.00019178,2]
[372938528,1752814269904,-460.0,0.00019178,2]
[372938529,1752814269914,-1347.37,0.00019178,2]
[372938530,1752814269923,-951.1,0.00019178,2]
[372938531,1752814269933,-642.72,0.00019178,2]
[372938532,1752814269943,-248.47952707,0.00019178,2]
[372938533,1752814269954,-374.93497639,0.00019178,2]
[372938534,1752814269963,-460.0,0.00019178,2]
[372938535,1752814269973,-460.0,0.00019178,2]
[372938536,1752814269983,-460.0,0.00019178,2]
[372938537,1752814269992,-855.25,0.00019178,2]
[372938538,1752814270001,-618.09,0.00019178,2]
[372938539,1752814270011,-4686.52,0.00019178,2]
[372938540,1752814270020,-460.0,0.00019178,2]
[372938541,1752814270030,-723.7,0.00019178,2]
[372938542,1752814270040,-460.0,0.00019178,2]
[372938543,1752814270050,-460.0,0.00019178,2]
[372938544,1752814270059,-460.0,0.00019178,2]
[372938545,1752814270069,-487.10523831,0.00019178,2]
[372938546,1752814270079,-460.0,0.00019178,2]
[372938547,1752814270089,-460.0,0.00019178,2]
[372938548,1752814270099,-460.0,0.00019178,2]
[372938549,1752814270108,-460.0,0.00019178,2]
[372938550,1752814270118,-1372.5,0.00019178,2]
[372938551,1752814270128,-898.43,0.00019178,2]
[372938552,1752814270137,-3660.04,0.00019178,2]
[372938553,1752814270146,-1144.81,0.00019178,2]
[372938554,1752814270156,-3275.21,0.00019178,2]
[372938555,1752814270166,-460.0,0.00019178,2]
[372938556,1752814270175,-908.6,0.00019178,2]
[372938557,1752814270185,-899.51,0.00019178,2]
[372938558,1752814270194,-460.0,0.00019178,2]
[372938559,1752814270204,-460.0,0.00019178,2]
[372938560,1752814270213,-460.0,0.00019178,2]
[372938561,1752814270223,-884.48,0.00019178,2]
[372938562,1752814270233,-460.0,0.00019178,2]
[372938563,1752814270243,-965.48,0.00019178,2]
[372938564,1752814270252,-888.06,0.00019178,2]
[372938565,1752814270263,-766.66,0.00019178,2]
[372938566,1752814270272,-1451.87,0.00019178,2]
[372938567,1752814270281,-460.0,0.00019178,2]
[372938568,1752814270291,-789.94,0.00019178,2]
[372938569,1752814270300,-1037.24,0.00019178,2]
[372938570,1752814270309,-3558.83,0.00019178,2]
[372938571,1752814270318,-652.7,0.00019178,2]
[372938572,1752814270327,-460.0,0.00019178,2]
[372938573,1752814270337,-460.0,0.00019178,2]
[372938574,1752814270346,-5829.63,0.00019178,2]
[372938575,1752814270355,-2475.6,0.00019178,2]
[372938576,1752814270364,-460.0,0.00019178,2]
[372938577,1752814270373,-921.62,0.00019178,2]
[372938578,1752814270383,-460.0,0.00019178,2]
[372938579,1752814270392,-727.58,0.00019178,2]
[372938580,1752814270401,-2187.72,0.00019178,2]
[372938581,1752814270411,-1653.45,0.00019178,2]
[372938582,1752814270420,-785.77,0.00019178,2]
[372938583,1752814270430,-698.36,0.00019178,2]
[372938584,1752814270439,-460.0,0.00019178,2]
[372938585,1752814270456,-1105.74,0.00019178,2]
[372938586,1752814270465,-822.88,0.00019178,2]
[372938587,1752814270478,-1074.47,0.00019178,2]
[372938588,1752814270490,-656.95,0.00019178,2]
[372938589,1752814270499,-335.03756084,0.00019178,2]
[372938590,1752814270508,-460.0,0.00019178,2]
[372938591,1752814270517,-460.0,0.00019178,2]
[372938592,1752814270526,-1003.73,0.00019178,2]
[372938593,1752814270535,-460.0,0.00019178,2]
[372938594,1752814270544,-809.59,0.00019178,2]
[372938595,1752814270553,-774.39,0.00019178,2]
[372938596,1752814270668,-460.0,0.00019178,2]
[372938597,1752814270677,-575.36,0.00019178,2]
[372938598,1752814270687,-460.0,0.00019178,2]
[372938599,1752814270696,-815.73,0.00019178,2]
[372938600,1752814270705,-788.57,0.00019178,2]
[372938601,1752814270714,-734.59,0.00019178,2]
[372938602,1752814270726,-3087.49,0.00019178,2]
[372938603,1752814270735,-703.98,0.00019178,2]
[372938604,1752814270745,-866.64,0.00019178,2]
[372938605,1752814270757,-733.98,0.00019178,2]
[372938606,1752814270771,-480.23,0.00019178,2]
[372938607,1752814270781,-794.47,0.00019178,2]
[372938608,1752814270790,-7082.82,0.00019178,2]
[372938609,1752814270799,-1531.18,0.00019178,2]
[372938610,1752814270808,-460.0,0.00019178,2]
[372938611,1752814270817,-2622.92,0.00019178,2]
[372938612,1752814270826,-2241.65,0.00019178,2]
[372938613,1752814270835,-5019.62,0.00019178,2]
[372938614,1752814270844,-460.0,0.00019178,2]
[372938615,1752814270853,-169.630393,0.00019178,2]
[372938616,1752814270862,-666.0,0.00019178,2]
[372938617,1752814270871,-3000.0,0.00019212,2]
[372938618,1752814270880,-260.0,0.00019233,2]
[372938619,1752814270888,-1002.71379163,0.00019268,2]
[372938620,1752814270897,-503.42127867,0.00019268,2]
[372938621,1752814270906,-501.05616911,0.00019268,2]
[372938622,1752814270915,-587.0,0.00019285,2]
[372938623,1752814270925,-150.0,0.00019311,2]
[372938624,1752814270934,-151.0,0.00019329,2]
[372938625,1752814270943,-53549.22843716,0.00019329,2]
[372938626,1752814270953,-460.0,0.00019452,2]
[372938627,1752814270962,-460.0,0.00019452,2]
[372938628,1752814270971,-460.0,0.00019452,2]
[372938629,1752814270983,-460.0,0.00019452,2]
[372938630,1752814270992,-460.0,0.00019452,2]
[372938631,1752814271006,-460.0,0.00019452,2]
[372938632,1752814271016,-460.0,0.00019452,2]
[372938633,1752814271025,-617.58,0.00019452,2]
[372938634,1752814271035,-317.75482416,0.00019452,2]
[372938635,1752814271044,-460.0,0.00019452,2]
[372938636,1752814271054,-460.0,0.00019452,2]
[372938637,1752814271063,-962.22,0.00019452,2]
[372938638,1752814271072,-460.0,0.00019452,2]
[372938639,1752814271082,-996.21,0.00019452,2]
[372938640,1752814271092,-460.0,0.00019452,2]
[372938641,1752814271101,-467.11744404,0.00019452,2]
[372938642,1752814271111,-504.97,0.00019452,2]
[372938643,1752814271121,-460.0,0.00019452,2]
[372938644,1752814271130,-471.94,0.00019452,2]
[372938645,1752814271140,-557.15,0.00019452,2]
[372938646,1752814271149,-460.0,0.00019452,2]
[372938647,1752814271159,-460.0,0.00019452,2]
[372938648,1752814271168,-633.99,0.00019452,2]
[372938649,1752814271178,-460.0,0.00019452,2]
[372938650,1752814271188,-480.02,0.00019452,2]
[372938651,1752814271198,-460.0,0.00019452,2]
[372938652,1752814271207,-745.89,0.00019452,2]
[372938653,1752814271217,-907.33,0.00019452,2]
[372938654,1752814271227,-638.44,0.00019452,2]
[372938655,1752814271236,-1126.45,0.00019452,2]
[372938656,1752814271246,-902.44,0.00019452,2]
[372938657,1752814271255,-151.0,0.00019452,2]
[372938658,1752814271264,-229.860349,0.00019452,2]
[372938659,1752814271274,-583.43180963,0.00019452,2]
[372938660,1752814271283,-229.860349,0.00019452,2]
[372938661,1752814271292,-686.15,0.00019452,2]
[372938662,1752814271302,-151.0,0.00019452,2]
[372938663,1752814271311,-434.3639655,0.00019452,2]
[372938664,1752814271320,-654.1,0.00019452,2]
[372938665,1752814271330,-179.995825,0.00019452,2]
[372938666,1752814271339,-555.02,0.00019452,2]
[372938667,1752814271350,-179.995825,0.00019452,2]
[372938668,1752814271360,-712.9,0.00019452,2]
[372938669,1752814271369,-465.47,0.00019452,2]
[372938670,1752814271379,-460.0,0.00019452,2]
[372938671,1752814271390,-462.34,0.00019452,2]
[372938672,1752814271399,-683.36,0.00019452,2]
[372938673,1752814271409,-2418.55,0.00019452,2]
[372938674,1752814271419,-1045.61,0.00019452,2]
[372938675,1752814271428,-538.01,0.00019452,2]
[372938676,1752814271438,-460.0,0.00019452,2]
[372938677,1752814271447,-560.07,0.00019452,2]
[372938678,1752814271457,-460.0,0.00019452,2]
[372938679,1752814271466,-686.49,0.00019452,2]
[372938680,1752814271477,-460.0,0.00019452,2]
[372938681,1752814271486,-460.0,0.00019452,2]
[372938682,1752814271496,-883.96,0.00019452,2]
[372938683,1752814271505,-460.0,0.00019452,2]
[372938684,1752814271515,-460.0,0.00019452,2]
[372938685,1752814271525,-460.0,0.00019452,2]
[372938686,1752814271535,-1347.37,0.00019452,2]
[372938687,1752814271544,-951.1,0.00019452,2]
[372938688,1752814271554,-642.72,0.00019452,2]
[372938689,1752814271563,-460.0,0.00019452,2]
[372938690,1752814271573,-460.0,0.00019452,2]
[372938691,1752814271582,-460.0,0.00019452,2]
[372938692,1752814271591,-855.25,0.00019452,2]
[372938693,1752814271601,-618.09,0.00019452,2]
[372938694,1752814271610,-4686.52,0.00019452,2]
[372938695,1752814271619,-723.7,0.00019452,2]
[372938696,1752814271629,-187.85863546,0.00019452,2]
[372938697,1752814271638,-460.0,0.00019452,2]
[372938698,1752814271647,-460.0,0.00019452,2]
[372938699,1752814271657,-460.0,0.00019452,2]
[372938700,1752814271666,-460.0,0.00019452,2]
[372938701,1752814271676,-460.0,0.00019452,2]
[372938702,1752814271686,-207.72306818,0.00019452,2]
[372938703,1752814271695,-158.25,0.00019452,2]
[372938704,1752814271706,-1372.5,0.00019452,2]
[372938705,1752814271716,-898.43,0.00019452,2]
[372938706,1752814271725,-3660.04,0.00019452,2]
[372938707,1752814271735,-1144.81,0.00019452,2]
[372938708,1752814271746,-3275.21,0.00019452,2]
[372938709,1752814271756,-562.53035776,0.00019452,2]
[372938710,1752814271770,-908.6,0.00019452,2]
[372938711,1752814271784,-899.51,0.00019452,2]
[372938712,1752814271793,-460.0,0.00019452,2]
[372938713,1752814271803,-460.0,0.00019452,2]
[372938714,1752814271813,-460.0,0.00019452,2]
[372938715,1752814271823,-884.48,0.00019452,2]
[372938716,1752814271832,-460.0,0.00019452,2]
[372938717,1752814271843,-965.48,0.00019452,2]
[372938718,1752814271852,-888.06,0.00019452,2]
[372938719,1752814271862,-766.66,0.00019452,2]
[372938720,1752814271871,-1451.87,0.00019452,2]
[372938721,1752814271881,-460.0,0.00019452,2]
[372938722,1752814271890,-789.94,0.00019452,2]
[372938723,1752814271900,-1037.24,0.00019452,2]
[372938724,1752814271910,-3558.83,0.00019452,2]
[372938725,1752814271919,-652.7,0.00019452,2]
[372938726,1752814271929,-460.0,0.00019452,2]
[372938727,1752814271939,-460.0,0.00019452,2]
[372938728,1752814271949,-5829.63,0.00019452,2]
[372938729,1752814271958,-2475.6,0.00019452,2]
[372938730,1752814271968,-460.0,0.00019452,2]
[372938731,1752814271978,-921.62,0.00019452,2]
[372938732,1752814271987,-292.89467807,0.00019452,2]
[372938733,1752814271998,-727.58,0.00019452,2]
[372938734,1752814272007,-2187.72,0.00019452,2]
[372938735,1752814272018,-1653.45,0.00019452,2]
[372938736,1752814272028,-785.77,0.00019452,2]
[372938737,1752814272037,-698.36,0.00019452,2]
[372938738,1752814272047,-580.49434951,0.00019452,2]
[372938739,1752814272056,-1105.74,0.00019452,2]
[372938740,1752814272066,-822.88,0.00019452,2]
[372938741,1752814272076,-1074.47,0.00019452,2]
[372938742,1752814272086,-460.0,0.00019452,2]
[372938743,1752814272095,-656.95,0.00019452,2]
[372938744,1752814272105,-460.0,0.00019452,2]
[372938745,1752814272115,-1003.73,0.00019452,2]
[372938746,1752814272124,-460.0,0.00019452,2]
[372938747,1752814272134,-809.59,0.00019452,2]
[372938748,1752814272143,-774.39,0.00019452,2]
[372938749,1752814272154,-460.0,0.00019452,2]
[372938750,1752814272163,-575.36,0.00019452,2]
[372938751,1752814272173,-460.0,0.00019452,2]
[372938752,1752814272182,-815.73,0.00019452,2]
[372938753,1752814272191,-788.57,0.00019452,2]
[372938754,1752814272201,-734.59,0.00019452,2]
[372938755,1752814272211,-3087.49,0.00019452,2]
[372938756,1752814272221,-866.64,0.00019452,2]
[372938757,1752814272232,-733.98,0.00019452,2]
[372938758,1752814272242,-480.23,0.00019452,2]
[372938759,1752814272251,-794.47,0.00019452,2]
[372938760,1752814272261,-7082.82,0.00019452,2]
[372938761,1752814272270,-1531.18,0.00019452,2]
[372938762,1752814272280,-460.0,0.00019452,2]
[372938763,1752814272289,-2622.92,0.00019452,2]
[372938764,1752814272300,-2241.65,0.00019452,2]
[372938765,1752814272309,-5019.62,0.00019452,2]
[372938766,1752814272319,-460.0,0.00019452,2]
[372938767,1752814272329,-1732.50139999,0.00019663,2]
[372938768,1752814272338,-460.0,0.00019726,2]
[372938769,1752814272347,-460.0,0.00019726,2]
[372938770,1752814272357,-460.0,0.00019726,2]
[372938771,1752814272366,-460.0,0.00019726,2]
[372938772,1752814272375,-460.0,0.00019726,2]
[372938773,1752814272384,-348.53384683,0.00019726,2]
[372938774,1752814272393,-460.0,0.00019726,2]
[372938775,1752814272402,-617.58,0.00019726,2]
[372938776,1752814272411,-550.56687725,0.00019726,2]
[372938777,1752814272421,-460.0,0.00019726,2]
[372938778,1752814272430,-962.22,0.00019726,2]
[372938779,1752814272440,-460.0,0.00019726,2]
[372938780,1752814272450,-996.21,0.00019726,2]
[372938781,1752814272459,-460.0,0.00019726,2]
[372938782,1752814272469,-504.97,0.00019726,2]
[372938783,1752814272479,-151.0,0.00019726,2]
[372938784,1752814272488,-460.0,0.00019726,2]
[372938785,1752814272498,-471.94,0.00019726,2]
[372938786,1752814272508,-151.0,0.00019726,2]
[372938787,1752814272519,-557.15,0.00019726,2]
[372938788,1752814272529,-460.0,0.00019726,2]
[372938789,1752814272539,-408.05161364,0.00019726,2]
[372938790,1752814272549,-633.99,0.00019726,2]
[372938791,1752814272558,-460.0,0.00019726,2]
[372938792,1752814272568,-480.02,0.00019726,2]
[372938793,1752814272577,-460.0,0.00019726,2]
[372938794,1752814272586,-907.33,0.00019726,2]
[372938795,1752814272596,-745.89,0.00019726,2]
[372938796,1752814272606,-151.0,0.00019726,2]
[372938797,1752814272615,-638.44,0.00019726,2]
[372938798,1752814272625,-1126.45,0.00019726,2]
[372938799,1752814272635,-902.44,0.00019726,2]
[372938800,1752814272645,-686.15,0.00019726,2]
[372938801,1752814272655,-654.1,0.00019726,2]
[372938802,1752814272665,-555.02,0.00019726,2]
[372938803,1752814272675,-712.9,0.00019726,2]
[372938804,1752814272685,-465.47,0.00019726,2]
[372938805,1752814272694,-460.0,0.00019726,2]
[372938806,1752814272704,-462.34,0.00019726,2]
[372938807,1752814272713,-683.36,0.00019726,2]
[372938808,1752814272723,-2418.55,0.00019726,2]
[372938809,1752814272737,-1045.61,0.00019726,2]
[372938810,1752814272746,-538.01,0.00019726,2]
[372938811,1752814272756,-460.0,0.00019726,2]
[372938812,1752814272769,-560.07,0.00019726,2]
[372938813,1752814272778,-460.0,0.00019726,2]
[372938814,1752814272895,-686.49,0.00019726,2]
[372938815,1752814272905,-460.0,0.00019726,2]
[372938816,1752814272915,-586.55139319,0.00019726,2]
[372938817,1752814272924,-883.96,0.00019726,2]
[372938818,1752814272934,-460.0,0.00019726,2]
[372938819,1752814272943,-460.0,0.00019726,2]
[372938820,1752814272952,-460.0,0.00019726,2]
[372938821,1752814272961,-1347.37,0.00019726,2]
[372938822,1752814272971,-951.1,0.00019726,2]
[372938823,1752814272982,-642.72,0.00019726,2]
[372938824,1752814272992,-460.0,0.00019726,2]
[372938825,1752814273001,-460.0,0.00019726,2]
[372938826,1752814273011,-460.0,0.00019726,2]
[372938827,1752814273020,-855.25,0.00019726,2]
[372938828,1752814273030,-618.09,0.00019726,2]
[372938829,1752814273040,-4686.52,0.00019726,2]
[372938830,1752814273049,-723.7,0.00019726,2]
[372938831,1752814273058,-460.0,0.00019726,2]
[372938832,1752814273069,-460.0,0.00019726,2]
[372938833,1752814273078,-460.0,0.00019726,2]
[372938834,1752814273088,-460.0,0.00019726,2]
[372938835,1752814273097,-460.0,0.00019726,2]
[372938836,1752814273107,-1372.5,0.00019726,2]
[372938837,1752814273117,-898.43,0.00019726,2]
[372938838,1752814273126,-3660.04,0.00019726,2]
[372938839,1752814273136,-1144.81,0.00019726,2]
[372938840,1752814273145,-3275.21,0.00019726,2]
[372938841,1752814273154,-908.6,0.00019726,2]
[372938842,1752814273164,-899.51,0.00019726,2]
[372938843,1752814273174,-460.0,0.00019726,2]